[Event "Early-Titled-Tuesday-Blitz-April-16-2024"]
[Site "Chess.com"]
[Date "2024.04.16"]
[Round "10"]
[White "McCarthyStone"]
[Black "Roedor"]
[Result "1-0"]
[WhiteElo "2392"]
[BlackElo "2350"]
[TimeControl "180+1"]
[EndTime "9:59:09 PDT"]
[Termination "McCarthyStone won by resignation"]

1. e4 {[%clk 0:03:00.9]} 1... e5 {[%clk 0:02:41]} 2. Nc3 {[%clk 0:02:55.6]} 2...
Nf6 {[%clk 0:02:40.1]} 3. Nf3 {[%clk 0:02:53.7]} 3... Nc6 {[%clk 0:02:38.2]} 4.
d4 {[%clk 0:02:51.6]} 4... exd4 {[%clk 0:02:37.6]} 5. Nd5 {[%clk 0:02:52.3]}
5... Nb4 {[%clk 0:02:35.3]} 6. Bc4 {[%clk 0:02:49.5]} 6... Nbxd5 {[%clk
0:02:33.8]} 7. exd5 {[%clk 0:02:50.1]} 7... Bb4+ {[%clk 0:02:32.9]} 8. Bd2
{[%clk 0:02:50.4]} 8... Bxd2+ {[%clk 0:02:31.9]} 9. Qxd2 {[%clk 0:02:48.7]} 9...
O-O {[%clk 0:02:31.7]} 10. O-O-O {[%clk 0:02:46.1]} 10... c5 {[%clk 0:02:25.4]}
11. dxc6 {[%clk 0:02:45.9]} 11... bxc6 {[%clk 0:02:24.1]} 12. Qxd4 {[%clk
0:02:45.2]} 12... d5 {[%clk 0:02:23.9]} 13. Bd3 {[%clk 0:02:40.1]} 13... Qb6
{[%clk 0:02:23.8]} 14. Qxb6 {[%clk 0:02:18.5]} 14... axb6 {[%clk 0:02:24.7]} 15.
a3 {[%clk 0:02:19.4]} 15... c5 {[%clk 0:02:22.8]} 16. Bb5 {[%clk 0:02:18.5]}
16... Be6 {[%clk 0:02:22.1]} 17. Ng5 {[%clk 0:02:12.4]} 17... h6 {[%clk
0:02:03.2]} 18. Nxe6 {[%clk 0:02:12.1]} 18... fxe6 {[%clk 0:02:04.1]} 19. f3
{[%clk 0:02:11.9]} 19... c4 {[%clk 0:01:52]} 20. Rhe1 {[%clk 0:02:09.4]} 20...
Kf7 {[%clk 0:01:52.4]} 21. Rd2 {[%clk 0:01:56.6]} 21... Rfd8 {[%clk 0:01:37.7]}
22. Rde2 {[%clk 0:01:49.5]} 22... Rd6 {[%clk 0:01:37.1]} 23. Rd1 {[%clk
0:01:42.5]} 23... Ra5 {[%clk 0:01:30.2]} 24. Bxc4 {[%clk 0:01:42.1]} 24... Rc5
{[%clk 0:01:26.5]} 25. Bb3 {[%clk 0:01:39.8]} 25... g5 {[%clk 0:01:22.3]} 26.
Kb1 {[%clk 0:01:37.5]} 26... b5 {[%clk 0:01:21.3]} 27. Rd4 {[%clk 0:01:34.4]}
27... Nh5 {[%clk 0:01:18.4]} 28. g3 {[%clk 0:01:31.7]} 28... Ng7 {[%clk
0:01:17.5]} 29. c3 {[%clk 0:01:27.7]} 29... Nf5 {[%clk 0:01:17.4]} 30. Rd1
{[%clk 0:01:28.2]} 30... Kf6 {[%clk 0:01:09.9]} 31. Rde1 {[%clk 0:01:27.5]}
31... h5 {[%clk 0:01:04.1]} 32. Bc2 {[%clk 0:01:24.1]} 32... Ne7 {[%clk
0:01:01.7]} 33. h4 {[%clk 0:01:19]} 33... gxh4 {[%clk 0:01:00.2]} 34. gxh4
{[%clk 0:01:19.9]} 34... Nf5 {[%clk 0:01:00.7]} 35. Bxf5 {[%clk 0:01:19.5]}
35... Kxf5 {[%clk 0:01:01.6]} 36. Re5+ {[%clk 0:01:19.1]} 36... Kf4 {[%clk
0:01:02.2]} 37. Rxh5 {[%clk 0:01:04.3]} 37... Kxf3 {[%clk 0:00:59.9]} 38. Rh6
{[%clk 0:01:03.8]} 38... Rcc6 {[%clk 0:00:59.1]} 39. Rf6+ {[%clk 0:01:01.8]}
39... Kg4 {[%clk 0:00:58.5]} 40. Rg1+ {[%clk 0:01:01.8]} 40... Kh5 {[%clk
0:00:58.8]} 41. Rf8 {[%clk 0:00:46.6]} 41... e5 {[%clk 0:00:55.7]} 42. Rh8+
{[%clk 0:00:42.5]} 42... Rh6 {[%clk 0:00:54.4]} 43. Rg5+ {[%clk 0:00:42.4]}
43... Kxh4 {[%clk 0:00:54.4]} 44. Rxh6+ {[%clk 0:00:43.2]} 44... Rxh6 {[%clk
0:00:52.9]} 45. Rxe5 {[%clk 0:00:44.1]} 45... Rd6 {[%clk 0:00:52.8]} 46. Kc2
{[%clk 0:00:40.4]} 46... Kg4 {[%clk 0:00:53]} 47. Kd3 {[%clk 0:00:40.2]} 47...
Kf4 {[%clk 0:00:53.5]} 48. Kd4 {[%clk 0:00:40.4]} 48... Rc6 {[%clk 0:00:43.1]}
49. Rxd5 {[%clk 0:00:40.5]} 49... Rc4+ {[%clk 0:00:43.3]} 50. Kd3 {[%clk
0:00:41.2]} 1-0

[Event "Early-Titled-Tuesday-Blitz-April-16-2024"]
[Site "Chess.com"]
[Date "2024.04.16"]
[Round "10"]
[White "chess123456s"]
[Black "lcmil"]
[Result "1-0"]
[WhiteElo "2608"]
[BlackElo "2517"]
[TimeControl "180+1"]
[EndTime "9:59:17 PDT"]
[Termination "chess123456s won by checkmate"]

1. d4 {[%clk 0:03:00.9]} 1... Nf6 {[%clk 0:02:57.5]} 2. Nc3 {[%clk 0:03:00.6]}
2... d5 {[%clk 0:02:56.1]} 3. Bf4 {[%clk 0:03:01.2]} 3... c5 {[%clk 0:02:50.6]}
4. e4 {[%clk 0:03:00.9]} 4... dxe4 {[%clk 0:02:42.7]} 5. dxc5 {[%clk 0:03:01.3]}
5... Qa5 {[%clk 0:02:39.9]} 6. Qd2 {[%clk 0:02:59.8]} 6... Nc6 {[%clk
0:02:35.9]} 7. O-O-O {[%clk 0:02:59.3]} 7... a6 {[%clk 0:02:15.2]} 8. Kb1 {[%clk
0:02:49]} 8... e5 {[%clk 0:02:13.2]} 9. Bg5 {[%clk 0:02:46.9]} 9... Bxc5 {[%clk
0:02:04.1]} 10. Bc4 {[%clk 0:02:24.4]} 10... Bf5 {[%clk 0:01:47.5]} 11. Bxf6
{[%clk 0:02:04.5]} 11... gxf6 {[%clk 0:01:48]} 12. Qh6 {[%clk 0:02:04.7]} 12...
Be7 {[%clk 0:00:57.1]} 13. Nge2 {[%clk 0:01:59.9]} 13... Bg6 {[%clk 0:00:42]}
14. Ng3 {[%clk 0:01:55.4]} 14... f5 {[%clk 0:00:37.6]} 15. Qg7 {[%clk
0:01:47.1]} 15... Rf8 {[%clk 0:00:37.2]} 16. h4 {[%clk 0:01:31.8]} 16... Qc5
{[%clk 0:00:36.2]} 17. Bb3 {[%clk 0:01:05.1]} 17... Qxf2 {[%clk 0:00:35.7]} 18.
Nd5 {[%clk 0:01:03.5]} 18... Rc8 {[%clk 0:00:34.9]} 19. Nf1 {[%clk 0:00:16.5]}
19... f4 {[%clk 0:00:31]} 20. h5 {[%clk 0:00:14.5]} 20... Bf5 {[%clk 0:00:29.8]}
21. Nf6+ {[%clk 0:00:12.7]} 21... Bxf6 {[%clk 0:00:29.6]} 22. Qxf6 {[%clk
0:00:13.6]} 22... Bd7 {[%clk 0:00:15.3]} 23. Qd6 {[%clk 0:00:13.8]} 23... Rd8
{[%clk 0:00:14.8]} 24. Nd2 {[%clk 0:00:13.9]} 24... Qxg2 {[%clk 0:00:11.4]} 25.
Rhg1 {[%clk 0:00:13.4]} 25... Qe2 {[%clk 0:00:10.2]} 26. Rge1 {[%clk 0:00:13.3]}
26... Qb5 {[%clk 0:00:09.4]} 27. Nxe4 {[%clk 0:00:13.6]} 27... f5 {[%clk
0:00:09]} 28. Nf6+ {[%clk 0:00:11.9]} 28... Rxf6 {[%clk 0:00:08.8]} 29. Qxf6
{[%clk 0:00:12.8]} 29... Qb4 {[%clk 0:00:09]} 30. Qf7# {[%clk 0:00:13.1]} 1-0

[Event "Early-Titled-Tuesday-Blitz-April-16-2024"]
[Site "Chess.com"]
[Date "2024.04.16"]
[Round "10"]
[White "VacheH009"]
[Black "MaxLeto"]
[Result "0-1"]
[WhiteElo "2597"]
[BlackElo "2411"]
[TimeControl "180+1"]
[EndTime "9:59:18 PDT"]
[Termination "MaxLeto won on time"]

1. g4 {[%clk 0:03:00.9]} 1... d5 {[%clk 0:02:56.2]} 2. Bg2 {[%clk 0:02:51.8]}
2... Bxg4 {[%clk 0:02:56.4]} 3. c4 {[%clk 0:02:51.4]} 3... c6 {[%clk 0:02:55.6]}
4. Qb3 {[%clk 0:02:49]} 4... Nf6 {[%clk 0:02:50.7]} 5. Qxb7 {[%clk 0:02:41.9]}
5... Nbd7 {[%clk 0:02:51.3]} 6. cxd5 {[%clk 0:02:38.2]} 6... cxd5 {[%clk
0:02:51.4]} 7. d3 {[%clk 0:02:34.6]} 7... e6 {[%clk 0:02:46.2]} 8. Nc3 {[%clk
0:02:24.3]} 8... Rb8 {[%clk 0:02:39.6]} 9. Qc6 {[%clk 0:02:19.8]} 9... Rb6
{[%clk 0:01:52.5]} 10. Qa4 {[%clk 0:02:10.5]} 10... Bd6 {[%clk 0:01:46.2]} 11.
Nf3 {[%clk 0:01:59.5]} 11... O-O {[%clk 0:01:44.6]} 12. Qd1 {[%clk 0:01:39.4]}
12... Qb8 {[%clk 0:01:17.2]} 13. h3 {[%clk 0:01:19]} 13... Bh5 {[%clk
0:01:14.6]} 14. d4 {[%clk 0:01:15.4]} 14... Rc8 {[%clk 0:01:10.4]} 15. O-O
{[%clk 0:01:07.4]} 15... h6 {[%clk 0:00:28.5]} 16. Na4 {[%clk 0:00:57.3]} 16...
Rbc6 {[%clk 0:00:26.2]} 17. Bd2 {[%clk 0:00:45.1]} 17... Bg6 {[%clk 0:00:24]}
18. Nc3 {[%clk 0:00:31.7]} 18... Qxb2 {[%clk 0:00:21.5]} 19. Qc1 {[%clk
0:00:27.1]} 19... Qxc1 {[%clk 0:00:17.3]} 20. Rfxc1 {[%clk 0:00:28]} 20... Ba3
{[%clk 0:00:13.8]} 21. Rf1 {[%clk 0:00:12]} 21... Bb2 {[%clk 0:00:13.7]} 22. Nb5
{[%clk 0:00:07.3]} 22... Bxa1 {[%clk 0:00:08]} 23. Nxa7 {[%clk 0:00:07.4]} 23...
Bb2 {[%clk 0:00:06.7]} 24. Nxc8 {[%clk 0:00:03.6]} 24... Rxc8 {[%clk 0:00:06.4]}
0-1

[Event "Early-Titled-Tuesday-Blitz-April-16-2024"]
[Site "Chess.com"]
[Date "2024.04.16"]
[Round "10"]
[White "bazar-wokzal"]
[Black "Gabrielian_Artur"]
[Result "1-0"]
[WhiteElo "2617"]
[BlackElo "2788"]
[TimeControl "180+1"]
[EndTime "9:59:21 PDT"]
[Termination "bazar-wokzal won on time"]

1. e4 {[%clk 0:03:00.9]} 1... c5 {[%clk 0:02:59.3]} 2. c3 {[%clk 0:03:00.7]}
2... Nf6 {[%clk 0:02:59.6]} 3. e5 {[%clk 0:03:01]} 3... Nd5 {[%clk 0:02:59.8]}
4. d4 {[%clk 0:03:01.6]} 4... d6 {[%clk 0:03:00]} 5. Bc4 {[%clk 0:02:54.4]} 5...
Nb6 {[%clk 0:02:59]} 6. Bxf7+ {[%clk 0:02:43.4]} 6... Kxf7 {[%clk 0:02:48.9]} 7.
dxc5 {[%clk 0:02:43.7]} 7... Nc6 {[%clk 0:02:37.4]} 8. exd6 {[%clk 0:02:34.9]}
8... exd6 {[%clk 0:02:34.3]} 9. cxb6 {[%clk 0:02:34.2]} 9... axb6 {[%clk
0:02:19.8]} 10. Nf3 {[%clk 0:02:33.9]} 10... h6 {[%clk 0:02:18.6]} 11. O-O
{[%clk 0:02:33.5]} 11... Be7 {[%clk 0:02:16.7]} 12. Bf4 {[%clk 0:02:31.5]} 12...
Rf8 {[%clk 0:02:16]} 13. Bg3 {[%clk 0:02:13.4]} 13... Kg8 {[%clk 0:02:16]} 14.
Nbd2 {[%clk 0:02:12.9]} 14... d5 {[%clk 0:02:13.6]} 15. h3 {[%clk 0:02:10.2]}
15... Bf5 {[%clk 0:02:08.9]} 16. Nb3 {[%clk 0:02:07.3]} 16... Be4 {[%clk
0:02:08.3]} 17. Nfd4 {[%clk 0:02:06.7]} 17... Qd7 {[%clk 0:01:56.6]} 18. f3
{[%clk 0:02:06.3]} 18... Bg6 {[%clk 0:01:54.3]} 19. Re1 {[%clk 0:02:06.2]} 19...
Rae8 {[%clk 0:01:53.7]} 20. Qd2 {[%clk 0:01:59.9]} 20... Bf6 {[%clk 0:01:52.7]}
21. Rxe8 {[%clk 0:01:58.2]} 21... Rxe8 {[%clk 0:01:52.4]} 22. Re1 {[%clk
0:01:57]} 22... Ne5 {[%clk 0:01:33.5]} 23. Bxe5 {[%clk 0:01:53.2]} 23... Rxe5
{[%clk 0:01:25.7]} 24. Rxe5 {[%clk 0:01:51.6]} 24... Bxe5 {[%clk 0:01:25.9]} 25.
Ne2 {[%clk 0:01:48.3]} 25... Qd6 {[%clk 0:01:16.6]} 26. Nbd4 {[%clk 0:01:47.2]}
26... Kh7 {[%clk 0:01:15.1]} 27. Qe3 {[%clk 0:01:45.4]} 27... Qf6 {[%clk
0:01:13.1]} 28. g3 {[%clk 0:01:35.8]} 28... Bc7 {[%clk 0:00:41.8]} 29. Kg2
{[%clk 0:01:33.5]} 29... h5 {[%clk 0:00:33.6]} 30. h4 {[%clk 0:01:33]} 30... Be5
{[%clk 0:00:27.9]} 31. Qg5 {[%clk 0:01:29.5]} 31... Qd6 {[%clk 0:00:05.7]} 32.
Nf4 {[%clk 0:01:24.7]} 32... Bf7 {[%clk 0:00:04.1]} 33. Nxh5 {[%clk 0:01:21.7]}
33... Kg8 {[%clk 0:00:01.6]} 34. Nf4 {[%clk 0:01:18.1]} 34... Bxd4 {[%clk
0:00:01.4]} 35. cxd4 {[%clk 0:01:17.8]} 35... Qb4 {[%clk 0:00:01.7]} 36. Nxd5
{[%clk 0:01:08.2]} 36... Qxb2+ {[%clk 0:00:01.5]} 37. Kh3 {[%clk 0:01:08.1]}
37... Qxd4 {[%clk 0:00:02.2]} 38. Ne7+ {[%clk 0:01:00.8]} 38... Kf8 {[%clk
0:00:02.6]} 39. Nf5 {[%clk 0:00:59]} 39... Qd1 {[%clk 0:00:02.2]} 40. Qxg7+
{[%clk 0:00:55.5]} 40... Ke8 {[%clk 0:00:02.6]} 41. Qe5+ {[%clk 0:00:54.5]}
41... Kd7 {[%clk 0:00:02.4]} 42. Qe7+ {[%clk 0:00:53.9]} 42... Kc6 {[%clk
0:00:02]} 43. Qxf7 {[%clk 0:00:53.5]} 1-0

[Event "Early-Titled-Tuesday-Blitz-April-16-2024"]
[Site "Chess.com"]
[Date "2024.04.16"]
[Round "10"]
[White "Nitzan_Steinberg"]
[Black "LiemLe"]
[Result "0-1"]
[WhiteElo "2911"]
[BlackElo "3048"]
[TimeControl "180+1"]
[EndTime "9:59:25 PDT"]
[Termination "LiemLe won by resignation"]

1. e4 {[%clk 0:03:00.9]} 1... c5 {[%clk 0:02:59.8]} 2. Nf3 {[%clk 0:03:01.1]}
2... Nc6 {[%clk 0:03:00.5]} 3. Bb5 {[%clk 0:03:00.9]} 3... g6 {[%clk 0:03:01.1]}
4. O-O {[%clk 0:03:01]} 4... Bg7 {[%clk 0:03:01.5]} 5. c3 {[%clk 0:03:00.7]}
5... Nf6 {[%clk 0:03:01.5]} 6. Re1 {[%clk 0:03:01.2]} 6... O-O {[%clk 0:03:01]}
7. h3 {[%clk 0:03:01.8]} 7... e5 {[%clk 0:02:59.3]} 8. d4 {[%clk 0:02:38.9]}
8... cxd4 {[%clk 0:02:54]} 9. cxd4 {[%clk 0:02:38.4]} 9... exd4 {[%clk
0:02:49.1]} 10. Na3 {[%clk 0:02:27.1]} 10... d5 {[%clk 0:02:45.2]} 11. exd5
{[%clk 0:02:11]} 11... Nxd5 {[%clk 0:02:39]} 12. Bg5 {[%clk 0:02:10.2]} 12...
Qb6 {[%clk 0:02:31.4]} 13. Rc1 {[%clk 0:01:54]} 13... Ndb4 {[%clk 0:02:08.4]}
14. Bc4 {[%clk 0:01:41.6]} 14... Bf5 {[%clk 0:01:44]} 15. Qd2 {[%clk 0:01:09.5]}
15... Rfe8 {[%clk 0:00:58.7]} 16. Bh6 {[%clk 0:01:07.4]} 16... Rad8 {[%clk
0:00:37.3]} 17. Qf4 {[%clk 0:00:54.2]} 17... d3 {[%clk 0:00:28.1]} 18. Rxe8+
{[%clk 0:00:28.1]} 18... Rxe8 {[%clk 0:00:27.9]} 19. Bxf7+ {[%clk 0:00:27.6]}
19... Kxf7 {[%clk 0:00:24.4]} 20. Nc4 {[%clk 0:00:25.5]} 20... Nd5 {[%clk
0:00:15.9]} 21. Nd6+ {[%clk 0:00:17.5]} 21... Kf8 {[%clk 0:00:15.4]} 22. Qg5
{[%clk 0:00:04.2]} 22... Qxb2 {[%clk 0:00:06.3]} 23. Nxf5 {[%clk 0:00:03.5]}
23... gxf5 {[%clk 0:00:04.6]} 24. Qxf5+ {[%clk 0:00:04]} 24... Nf6 {[%clk
0:00:04.6]} 25. Rd1 {[%clk 0:00:02.6]} 25... Bxh6 {[%clk 0:00:04.1]} 26. Rxd3
{[%clk 0:00:02.1]} 26... Qc1+ {[%clk 0:00:04.5]} 27. Kh2 {[%clk 0:00:02.3]}
27... Qf4+ {[%clk 0:00:05.2]} 28. Qxf4 {[%clk 0:00:02.9]} 28... Bxf4+ {[%clk
0:00:06.1]} 0-1

[Event "Early-Titled-Tuesday-Blitz-April-16-2024"]
[Site "Chess.com"]
[Date "2024.04.16"]
[Round "10"]
[White "viktorskliarov"]
[Black "VinzentSpitzl"]
[Result "1-0"]
[WhiteElo "2613"]
[BlackElo "2466"]
[TimeControl "180+1"]
[EndTime "9:59:28 PDT"]
[Termination "viktorskliarov won by checkmate"]

1. e4 {[%clk 0:03:00.9]} 1... c5 {[%clk 0:02:47.2]} 2. Nf3 {[%clk 0:03:00.1]}
2... d6 {[%clk 0:02:47.5]} 3. d4 {[%clk 0:02:59.9]} 3... cxd4 {[%clk 0:02:45]}
4. Qxd4 {[%clk 0:03:00.8]} 4... Nf6 {[%clk 0:02:45.4]} 5. Nc3 {[%clk 0:02:59.7]}
5... Nc6 {[%clk 0:02:45.4]} 6. Bb5 {[%clk 0:02:59.7]} 6... Bd7 {[%clk
0:02:45.6]} 7. Bxc6 {[%clk 0:03:00.4]} 7... Bxc6 {[%clk 0:02:46.5]} 8. Bg5
{[%clk 0:03:00.6]} 8... g6 {[%clk 0:02:40.2]} 9. Bxf6 {[%clk 0:02:58.1]} 9...
exf6 {[%clk 0:02:40.4]} 10. O-O-O {[%clk 0:02:58.3]} 10... Bg7 {[%clk 0:02:39]}
11. Qxd6 {[%clk 0:02:55.3]} 11... Qxd6 {[%clk 0:02:39.4]} 12. Rxd6 {[%clk
0:02:54.7]} 12... O-O {[%clk 0:02:40]} 13. Nd5 {[%clk 0:02:44.4]} 13... f5
{[%clk 0:02:22]} 14. exf5 {[%clk 0:02:39.9]} 14... Bxd5 {[%clk 0:02:08.5]} 15.
Rxd5 {[%clk 0:02:38.3]} 15... Rfe8 {[%clk 0:02:09.1]} 16. Re1 {[%clk 0:02:29.8]}
16... Rxe1+ {[%clk 0:02:08.4]} 17. Nxe1 {[%clk 0:02:29.6]} 17... Re8 {[%clk
0:02:09.3]} 18. Kd1 {[%clk 0:02:28.8]} 18... Bxb2 {[%clk 0:02:08.6]} 19. fxg6
{[%clk 0:02:08.1]} 19... hxg6 {[%clk 0:02:07.4]} 20. Rd7 {[%clk 0:02:05.8]}
20... Rb8 {[%clk 0:01:35.8]} 21. Nd3 {[%clk 0:02:02.9]} 21... Bc3 {[%clk
0:01:35.6]} 22. Rc7 {[%clk 0:02:02.7]} 22... Bd4 {[%clk 0:01:29.8]} 23. Ke2
{[%clk 0:01:58.6]} 23... a6 {[%clk 0:01:25.1]} 24. Rd7 {[%clk 0:01:55.9]} 24...
Bc3 {[%clk 0:01:16.2]} 25. Rc7 {[%clk 0:01:55]} 25... Bd4 {[%clk 0:01:15.7]} 26.
c4 {[%clk 0:01:53.8]} 26... b6 {[%clk 0:01:09.9]} 27. Kf3 {[%clk 0:01:46.4]}
27... Rd8 {[%clk 0:01:03.6]} 28. a4 {[%clk 0:01:38.2]} 28... a5 {[%clk
0:01:03.3]} 29. Nf4 {[%clk 0:01:26.4]} 29... Bc5 {[%clk 0:01:01.8]} 30. Nd5
{[%clk 0:01:23.7]} 30... Rd6 {[%clk 0:01:01.3]} 31. Rc8+ {[%clk 0:01:12.5]}
31... Kg7 {[%clk 0:01:00.1]} 32. Re8 {[%clk 0:01:13]} 32... Rd7 {[%clk
0:00:53.6]} 33. h4 {[%clk 0:01:04.7]} 33... b5 {[%clk 0:00:53.3]} 34. Rg8+
{[%clk 0:00:44.5]} 34... Kh6 {[%clk 0:00:40.5]} 35. axb5 {[%clk 0:00:36.8]}
35... a4 {[%clk 0:00:36]} 36. g4 {[%clk 0:00:36.3]} 36... Bd4 {[%clk 0:00:27.7]}
37. Ra8 {[%clk 0:00:27.1]} 37... Rd6 {[%clk 0:00:15.1]} 38. Rxa4 {[%clk
0:00:25.9]} 38... f5 {[%clk 0:00:16]} 39. Ra6 {[%clk 0:00:23.6]} 39... Rd8
{[%clk 0:00:14.3]} 40. gxf5 {[%clk 0:00:23.5]} 40... Rf8 {[%clk 0:00:14.3]} 41.
Rxg6+ {[%clk 0:00:23.6]} 41... Kh5 {[%clk 0:00:14.6]} 42. Nf4+ {[%clk
0:00:23.4]} 42... Kxh4 {[%clk 0:00:13.9]} 43. Rg4# {[%clk 0:00:24.3]} 1-0

[Event "Early-Titled-Tuesday-Blitz-April-16-2024"]
[Site "Chess.com"]
[Date "2024.04.16"]
[Round "10"]
[White "campochess"]
[Black "bylavochka"]
[Result "0-1"]
[WhiteElo "2216"]
[BlackElo "2351"]
[TimeControl "180+1"]
[EndTime "9:59:28 PDT"]
[Termination "bylavochka won by resignation"]

1. Nf3 {[%clk 0:02:52.7]} 1... Nf6 {[%clk 0:02:59.8]} 2. b3 {[%clk 0:02:52.8]}
2... e6 {[%clk 0:02:58.5]} 3. Bb2 {[%clk 0:02:52.7]} 3... Be7 {[%clk 0:02:58.9]}
4. c4 {[%clk 0:02:51.2]} 4... b6 {[%clk 0:02:59.1]} 5. g3 {[%clk 0:02:50.2]}
5... Bb7 {[%clk 0:02:59.5]} 6. Bg2 {[%clk 0:02:50.4]} 6... O-O {[%clk 0:03:00]}
7. d3 {[%clk 0:02:50.4]} 7... d6 {[%clk 0:02:57.2]} 8. e4 {[%clk 0:02:50.2]}
8... Nbd7 {[%clk 0:02:57.4]} 9. O-O {[%clk 0:02:50.3]} 9... Re8 {[%clk
0:02:52.6]} 10. Nbd2 {[%clk 0:02:50.1]} 10... Nf8 {[%clk 0:02:52.6]} 11. Re1
{[%clk 0:02:50.3]} 11... Ng6 {[%clk 0:02:52.7]} 12. d4 {[%clk 0:02:48.8]} 12...
e5 {[%clk 0:02:23.4]} 13. d5 {[%clk 0:02:48.3]} 13... Nd7 {[%clk 0:02:15.7]} 14.
b4 {[%clk 0:02:46.3]} 14... a5 {[%clk 0:02:15.2]} 15. a3 {[%clk 0:02:46.1]}
15... Bc8 {[%clk 0:02:02.4]} 16. Qc2 {[%clk 0:02:39.6]} 16... Nb8 {[%clk
0:01:52.1]} 17. Nb3 {[%clk 0:02:37.4]} 17... a4 {[%clk 0:01:40.6]} 18. Nc1
{[%clk 0:02:34.9]} 18... Rf8 {[%clk 0:01:29.6]} 19. Nd3 {[%clk 0:02:34.6]} 19...
f5 {[%clk 0:01:29.1]} 20. exf5 {[%clk 0:02:26.8]} 20... Bxf5 {[%clk 0:01:27.1]}
21. Qd2 {[%clk 0:02:26.5]} 21... e4 {[%clk 0:01:24]} 22. Nd4 {[%clk 0:02:13.4]}
22... exd3 {[%clk 0:01:20.3]} 23. Nxf5 {[%clk 0:02:08.8]} 23... Rxf5 {[%clk
0:01:21.2]} 24. Qxd3 {[%clk 0:02:08.7]} 24... Qf8 {[%clk 0:01:01.9]} 25. Be4
{[%clk 0:02:06.4]} 25... Rxf2 {[%clk 0:00:56.2]} 26. Bd4 {[%clk 0:02:06.1]}
26... Rf7 {[%clk 0:00:32.3]} 27. c5 {[%clk 0:01:56.6]} 27... bxc5 {[%clk
0:00:29]} 28. bxc5 {[%clk 0:01:56.5]} 28... Nd7 {[%clk 0:00:28.7]} 29. c6 {[%clk
0:01:49.6]} 29... Nde5 {[%clk 0:00:27.1]} 30. Qc2 {[%clk 0:01:45.1]} 30... Bf6
{[%clk 0:00:22.9]} 31. Kh1 {[%clk 0:01:40.9]} 31... Ng4 {[%clk 0:00:21.4]} 32.
Bxf6 {[%clk 0:01:36.5]} 32... Rxf6 {[%clk 0:00:19.6]} 33. Bg2 {[%clk 0:01:26.2]}
33... N6e5 {[%clk 0:00:16.7]} 34. Rf1 {[%clk 0:01:24.2]} 34... Qe7 {[%clk
0:00:11.6]} 35. Rxf6 {[%clk 0:01:22.8]} 35... Qxf6 {[%clk 0:00:10.9]} 36. Rf1
{[%clk 0:01:21.5]} 36... Qe7 {[%clk 0:00:11.1]} 37. Qe2 {[%clk 0:01:17.4]} 37...
Rf8 {[%clk 0:00:10.5]} 38. Re1 {[%clk 0:01:14.5]} 38... Qf6 {[%clk 0:00:08.5]}
39. h3 {[%clk 0:01:11.7]} 39... Nh6 {[%clk 0:00:06.3]} 40. Rf1 {[%clk
0:01:09.6]} 40... Qe7 {[%clk 0:00:05.9]} 41. Re1 {[%clk 0:01:05.5]} 41... Nf5
{[%clk 0:00:05.9]} 42. Kh2 {[%clk 0:01:01.9]} 42... Nd4 {[%clk 0:00:06.2]} 43.
Qe4 {[%clk 0:01:00.4]} 43... Ndf3+ {[%clk 0:00:02.2]} 44. Bxf3 {[%clk
0:00:50.9]} 44... Nxf3+ {[%clk 0:00:03.1]} 45. Kg2 {[%clk 0:00:49.2]} 45...
Nxe1+ {[%clk 0:00:03.2]} 0-1

[Event "Early-Titled-Tuesday-Blitz-April-16-2024"]
[Site "Chess.com"]
[Date "2024.04.16"]
[Round "10"]
[White "Alexchess1984"]
[Black "Cheer_Down"]
[Result "1-0"]
[WhiteElo "2687"]
[BlackElo "2514"]
[TimeControl "180+1"]
[EndTime "9:59:29 PDT"]
[Termination "Alexchess1984 won by resignation"]

1. e4 {[%clk 0:03:00.9]} 1... e5 {[%clk 0:02:59.8]} 2. Nf3 {[%clk 0:03:00.5]}
2... Nc6 {[%clk 0:02:59.6]} 3. Bc4 {[%clk 0:03:00.6]} 3... Nf6 {[%clk
0:02:59.3]} 4. d4 {[%clk 0:02:58.5]} 4... exd4 {[%clk 0:02:53.8]} 5. e5 {[%clk
0:02:58.5]} 5... Ne4 {[%clk 0:02:53.4]} 6. O-O {[%clk 0:02:55.8]} 6... Be7
{[%clk 0:02:49.7]} 7. Bd5 {[%clk 0:02:45.6]} 7... Nc5 {[%clk 0:02:49.2]} 8. Nxd4
{[%clk 0:02:45]} 8... Nxd4 {[%clk 0:02:39.1]} 9. Qxd4 {[%clk 0:02:43]} 9... O-O
{[%clk 0:02:34.6]} 10. Nc3 {[%clk 0:02:40.3]} 10... c6 {[%clk 0:02:22.9]} 11.
Bf3 {[%clk 0:02:37.8]} 11... d5 {[%clk 0:02:20.6]} 12. exd6 {[%clk 0:02:33.5]}
12... Qxd6 {[%clk 0:02:20.1]} 13. Qxd6 {[%clk 0:02:33.3]} 13... Bxd6 {[%clk
0:02:20.4]} 14. Be3 {[%clk 0:02:33.6]} 14... Re8 {[%clk 0:02:04.2]} 15. Rad1
{[%clk 0:02:29.3]} 15... Bf8 {[%clk 0:02:04.3]} 16. Rfe1 {[%clk 0:02:28.4]}
16... Bf5 {[%clk 0:02:03.1]} 17. Rd2 {[%clk 0:02:12.7]} 17... a5 {[%clk
0:01:58.6]} 18. a4 {[%clk 0:02:11.5]} 18... Rad8 {[%clk 0:01:52]} 19. Red1
{[%clk 0:02:09.5]} 19... Rxd2 {[%clk 0:01:51.9]} 20. Rxd2 {[%clk 0:02:09.6]}
20... h6 {[%clk 0:01:42]} 21. h3 {[%clk 0:02:09.4]} 21... g5 {[%clk 0:01:35.2]}
22. g4 {[%clk 0:01:40.7]} 22... Bg6 {[%clk 0:01:31.5]} 23. b3 {[%clk 0:01:31.1]}
23... Bg7 {[%clk 0:01:23.6]} 24. Ne2 {[%clk 0:01:03.1]} 24... Ne4 {[%clk
0:00:58.2]} 25. Bxe4 {[%clk 0:01:03.3]} 25... Bxe4 {[%clk 0:00:57.1]} 26. Ng3
{[%clk 0:01:03.3]} 26... Bg6 {[%clk 0:00:56.2]} 27. Nf5 {[%clk 0:00:55.8]} 27...
Bxf5 {[%clk 0:00:56.4]} 28. gxf5 {[%clk 0:00:56.4]} 28... Re5 {[%clk 0:00:56.6]}
29. Rd7 {[%clk 0:00:56.6]} 29... b5 {[%clk 0:00:55.1]} 30. Rc7 {[%clk 0:00:55]}
30... bxa4 {[%clk 0:00:49.3]} 31. bxa4 {[%clk 0:00:55]} 31... Rxf5 {[%clk
0:00:49.2]} 32. Rxc6 {[%clk 0:00:55.6]} 32... Rd5 {[%clk 0:00:38.4]} 33. c4
{[%clk 0:00:55]} 33... Rd1+ {[%clk 0:00:37.1]} 34. Kg2 {[%clk 0:00:55.1]} 34...
f5 {[%clk 0:00:37]} 35. Rc8+ {[%clk 0:00:54.6]} 35... Kh7 {[%clk 0:00:35.8]} 36.
Bb6 {[%clk 0:00:50]} 36... h5 {[%clk 0:00:32.5]} 37. c5 {[%clk 0:00:50.1]} 37...
g4 {[%clk 0:00:32.3]} 38. hxg4 {[%clk 0:00:41.5]} 38... hxg4 {[%clk 0:00:31.5]}
39. c6 {[%clk 0:00:41.2]} 39... Be5 {[%clk 0:00:30.2]} 40. c7 {[%clk 0:00:34.8]}
40... Rc1 {[%clk 0:00:29.9]} 41. Re8 {[%clk 0:00:29.1]} 41... Bxc7 {[%clk
0:00:24.1]} 42. Re7+ {[%clk 0:00:29.3]} 42... Kg6 {[%clk 0:00:24.6]} 43. Rxc7
{[%clk 0:00:29.3]} 43... Ra1 {[%clk 0:00:22.6]} 44. Rc4 {[%clk 0:00:29.2]} 1-0